bitfinex/quotes_SOLUSD_20241218
["timestamp","ask_amount","ask_price","bid_price","bid_amount"]
[1734563361566,22.57488021,206.22,206.15,22.57488021]
[1734563362043,22.57488021,206.24,206.16,22.57488021]
[1734563362354,22.57488021,206.24,206.17,22.57488021]
[1734563362562,22.57488021,206.24,206.16,22.57488021]
[1734563363247,22.57488021,206.24,206.17,22.57488021]
[1734563363634,22.57488021,206.23,206.16,22.57488021]
[1734563364437,23.30639341,206.22,206.14,22.57488021]
[1734563364643,22.57488021,206.22,206.14,22.57488021]
[1734563364844,22.57488021,206.23,206.15,22.57488021]
[1734563365142,22.57488021,206.23,206.16,22.57488021]
[1734563365955,22.57488021,206.25,206.17,16.42992911]
[1734563366132,22.57488021,206.27,206.2,22.57488021]
[1734563366943,22.57488021,206.27,206.19,22.57488021]
[1734563367529,0.7315132,206.3,206.23,22.57488021]
[1734563367735,22.57488021,206.33,206.25,22.57488021]
[1734563368137,22.57488021,206.31,206.22,22.57488021]
[1734563369443,22.57488021,206.3,206.23,22.57488021]
[1734563370157,22.57488021,206.3,206.22,22.57488021]
[1734563371561,22.57488021,206.3,206.23,22.57488021]
[1734563371942,22.57488021,206.31,206.24,22.57488021]
[1734563372151,22.57488021,206.32,206.25,22.57488021]
[1734563372330,22.07488021,206.32,206.24,22.57488021]
[1734563372530,22.57488021,206.31,206.24,22.57488021]
[1734563372936,22.57488021,206.29,206.2,0.72715043]
[1734563373242,22.57488021,206.26,206.19,42.57488021]
[1734563373434,22.57488021,206.23,206.16,29.84188021]
[1734563373643,22.57488021,206.25,206.17,22.57488021]
[1734563373846,22.57488021,206.24,206.17,22.57488021]
[1734563374051,22.57488021,206.23,206.16,29.84188021]
[1734563374466,0.7315132,206.28,206.16,29.84188021]
[1734563374467,22.57488021,206.24,206.16,29.84188021]
[1734563374666,22.57488021,206.24,206.17,22.57488021]
[1734563374837,22.57488021,206.25,206.17,22.57488021]
[1734563375874,22.57488021,206.25,206.18,22.57488021]
[1734563376177,22.57488021,206.25,206.17,22.57488021]
[1734563376381,22.57488021,206.23,206.15,26.88728021]
[1734563376546,22.57488021,206.22,206.15,26.88728021]
[1734563376868,23.30639341,206.21,206.13,22.57488021]
[1734563377170,22.57488021,206.21,206.13,22.57488021]
[1734563377379,22.57488021,206.22,206.15,22.57488021]
[1734563377547,22.57488021,206.21,206.14,22.57488021]
[1734563378049,22.57488021,206.21,206.13,22.57488021]
[1734563378263,22.57488021,206.21,206.14,22.57488021]
[1734563379471,23.776884,206.24,206.15,22.57488021]
[1734563379654,46.35176421,206.24,206.17,22.57488021]
[1734563379845,22.57488021,206.25,206.17,22.57488021]
[1734563380048,14.10794924,206.24,206.17,14.10794924]
[1734563380687,14.83946244,206.23,206.16,14.10794924]
[1734563381167,14.83946244,206.23,206.15,14.10794924]
[1734563381378,14.10794924,206.22,206.15,14.10794924]
[1734563381855,0.7315132,206.25,206.17,14.10794924]
[1734563382080,20.0,206.26,206.19,14.10794924]
[1734563382548,6.9446,206.31,206.21,14.10794924]
[1734563382751,14.10794924,206.29,206.21,14.10794924]
[1734563383153,14.83946244,206.29,206.21,14.10794924]
[1734563383456,14.10794924,206.27,206.19,14.10794924]
[1734563383972,0.7315132,206.29,206.19,14.10794924]
[1734563384266,37.88483324,206.28,206.19,14.10794924]
[1734563384471,14.10794924,206.26,206.19,14.10794924]
[1734563386745,0.7315132,206.25,206.17,14.10794924]
[1734563387144,14.10794924,206.24,206.17,14.10794924]
[1734563388371,0.7315132,206.23,206.17,14.10794924]
[1734563388556,12.1194,206.28,206.17,14.10794924]
[1734563388761,14.10794924,206.27,206.19,14.10794924]
[1734563390270,20.7315132,206.29,206.19,14.10794924]
[1734563390469,14.10794924,206.29,206.21,14.10794924]
[1734563390971,0.7315132,206.28,206.21,14.10794924]
[1734563393074,14.10794924,206.27,206.19,14.10794924]
[1734563396657,14.83946244,206.26,206.19,14.10794924]
[1734563396970,14.10794924,206.25,206.18,14.10794924]
[1734563398077,14.10794924,206.21,206.14,14.10794924]
[1734563398267,14.10794924,206.21,206.13,14.10794924]
[1734563399754,14.10794924,206.2,206.13,14.10794924]
[1734563400166,14.10794924,206.2,206.12,14.10794924]
[1734563400366,14.10794924,206.17,206.1,14.10794924]
[1734563401678,14.10794924,206.15,206.08,14.10794924]
[1734563401885,14.10794924,206.12,206.05,14.10794924]
[1734563402081,14.10794924,206.1,206.03,14.10794924]
[1734563402267,14.10794924,206.05,205.98,6.8182]
[1734563402598,14.10794924,206.04,205.97,14.10794924]
[1734563403474,14.10794924,206.05,205.98,14.10794924]
[1734563403658,14.10794924,206.04,205.97,14.10794924]
[1734563405978,14.10794924,206.03,205.96,14.10794924]
[1734563406179,14.10794924,206.03,205.95,4.4125]
[1734563406180,14.10794924,206.03,205.95,18.52044924]
[1734563406363,14.10794924,206.02,205.86,322.98061869]
[1734563406707,14.10794924,206.03,205.95,14.10794924]
[1734563407362,14.10794924,206.03,205.96,14.10794924]
[1734563407583,14.10794924,206.03,205.95,14.10794924]
[1734563409691,14.10794924,206.04,205.96,14.10794924]
[1734563410006,14.10794924,206.03,205.96,14.10794924]
[1734563410171,14.10794924,206.02,205.95,14.10794924]
[1734563411165,14.10794924,206.03,205.96,14.10794924]
[1734563411365,14.10794924,206.03,205.95,14.10794924]
[1734563411796,14.10794924,206.03,205.96,14.10794924]
[1734563412589,14.10794924,206.03,205.95,14.10794924]
[1734563412801,14.10794924,206.03,205.96,14.10794924]
[1734563413165,14.10794924,206.02,205.94,14.10794924]
[1734563414293,14.10794924,206.01,205.93,34.46863292]
[1734563414792,14.10794924,206.01,205.94,14.10794924]
[1734563414992,14.10794924,206.01,205.93,0.36068368]
[1734563415188,14.10794924,205.95,205.85,4.2662]
[1734563415368,14.10794924,205.94,205.87,44.10794924]
[1734563415571,14.10794924,205.94,205.87,14.10794924]
[1734563416204,14.10794924,205.95,205.87,14.10794924]
[1734563416395,14.10794924,205.96,205.89,14.10794924]
[1734563416592,14.10794924,205.97,205.89,14.10794924]
[1734563416794,14.10794924,206.01,205.93,14.10794924]
[1734563417108,6.9316,206.02,205.94,0.3607542]
[1734563417109,14.10794924,206.0,205.94,0.3607542]
[1734563417305,14.10794924,206.0,205.92,14.10794924]
[1734563417500,14.10794924,205.99,205.91,14.10794924]
[1734563417696,14.10794924,205.98,205.9,14.10794924]
[1734563417898,14.10794924,205.98,205.91,14.10794924]
[1734563418109,14.10794924,205.99,205.92,14.10794924]
[1734563418408,14.10794924,206.0,205.92,14.10794924]
[1734563418586,14.10794924,205.99,205.91,14.10794924]
[1734563419512,14.10794924,205.97,205.9,14.10794924]
[1734563419814,14.10794924,205.98,205.91,14.10794924]
[1734563420114,14.10794924,205.97,205.9,14.10794924]
[1734563420406,14.10794924,205.96,205.89,14.10794924]
[1734563421314,20.0,206.04,205.93,14.10794924]
[1734563421494,14.10794924,206.04,205.96,14.10794924]
[1734563421693,14.10794924,206.04,205.97,14.10794924]
[1734563421908,11.6681,206.13,206.0,43.776884]
[1734563422206,11.6681,206.19,206.05,0.12549]
[1734563422513,14.10794924,206.14,206.07,14.10794924]
[1734563422692,14.10794924,206.14,206.08,0.35950309]
[1734563423093,14.10794924,206.15,206.08,14.46745233]
[1734563424088,22.59216716,206.15,206.08,0.35950309]
[1734563425313,22.59216716,206.16,206.09,22.59216716]
[1734563425487,22.59216716,206.16,206.09,22.95149508]
[1734563425685,11.6681,206.19,206.04,20.0]
[1734563425686,22.59216716,206.15,206.07,22.59216716]
[1734563426507,22.59216716,206.15,206.07,34.11276716]
[1734563426714,22.59216716,206.15,206.08,22.59216716]
[1734563427103,22.59216716,206.16,206.09,0.35950355]
[1734563427518,22.59216716,206.17,206.09,22.95167071]
[1734563427724,22.59216716,206.16,206.09,22.95167071]
[1734563428222,22.59216716,206.18,206.1,22.59216716]
[1734563430219,22.59216716,206.18,206.1,21.6271428]
[1734563430614,22.59216716,206.16,206.08,22.59216716]
[1734563430813,22.59216716,206.16,206.03,22.59216716]
[1734563430814,22.59216716,206.11,206.03,22.59216716]
[1734563431002,22.59216716,206.09,206.04,30.0]
[1734563431199,23.50201104,206.08,206.01,22.59216716]
[1734563431405,22.59216716,206.07,205.99,22.59216716]
[1734563431609,22.59216716,206.06,205.99,22.59216716]
[1734563432102,22.59216716,206.07,205.99,22.59216716]
[1734563433201,23.5020938,206.12,206.04,22.59216716]
[1734563433401,22.59216716,206.14,206.07,22.59216716]
[1734563435106,22.59216716,206.13,206.06,22.59216716]
[1734563438819,22.59216716,206.11,206.04,22.59216716]
[1734563439022,11.6681,206.16,206.05,20.0]
[1734563439023,22.59216716,206.09,206.05,20.0]
[1734563439320,22.59216716,206.09,206.02,22.59216716]
[1734563444024,14.12863686,206.1,206.02,14.12863686]
[1734563444210,0.90990438,206.09,206.02,14.12863686]
[1734563445210,14.12863686,206.06,206.0,14.12863686]
[1734563445412,14.12863686,206.06,205.98,14.12863686]
[1734563445622,14.12863686,206.1,206.02,14.12863686]
[1734563445823,15.03850263,206.15,206.07,14.12863686]
[1734563446044,25.79673686,206.16,206.08,14.12863686]
[1734563446205,24.2444,206.24,206.1,14.12863686]
[1734563446206,14.12863686,206.18,206.1,14.12863686]
[1734563447225,14.12863686,206.19,206.11,14.12863686]
[1734563447614,14.12863686,206.18,206.1,14.12863686]
[1734563449213,0.90947004,206.2,206.09,14.12863686]
[1734563449214,14.12863686,206.17,206.09,14.12863686]
[1734563450432,14.12863686,206.2,206.13,14.12863686]
[1734563457747,14.12863686,206.22,206.14,14.12863686]
[1734563457923,14.12863686,206.22,206.15,14.12863686]
[1734563459227,14.12863686,206.24,206.16,14.12863686]
[1734563459429,14.12863686,206.24,206.12,0.35877457]
[1734563459430,14.12863686,206.24,206.17,14.12863686]
[1734563459634,14.12863686,206.25,206.17,14.12863686]
[1734563460229,14.12863686,206.27,206.19,14.12863686]
[1734563460425,14.12863686,206.28,206.21,14.12863686]
[1734563460625,14.12863686,206.29,206.21,14.12863686]
[1734563461032,8.76342809,206.36,206.21,14.12863686]
[1734563461033,14.12863686,206.28,206.21,14.12863686]
[1734563461541,14.12863686,206.29,206.21,14.4869482]
[1734563461919,0.90892837,206.34,206.22,14.12863686]
[1734563462228,14.12863686,206.3,206.23,14.12863686]
[1734563462436,14.12863686,206.29,206.22,14.12863686]
[1734563462616,14.12863686,206.28,206.21,14.12863686]
[1734563462941,14.12863686,206.28,206.2,44.12863686]
[1734563463137,14.12863686,206.27,206.2,44.12863686]
[1734563463355,14.12863686,206.25,206.2,30.0]
[1734563463937,14.12863686,206.26,206.18,14.12863686]
[1734563464321,14.12863686,206.27,206.19,14.12863686]
[1734563464518,14.12863686,206.27,206.2,14.12863686]
[1734563464815,14.12863686,206.29,206.21,14.12863686]
[1734563465016,14.12863686,206.29,206.22,14.12863686]
[1734563465441,14.12863686,206.29,206.21,14.12863686]
[1734563466022,14.12863686,206.29,206.22,14.12863686]
[1734563466423,14.12863686,206.3,206.22,14.12863686]
[1734563466820,14.12863686,206.29,206.22,14.12863686]
[1734563467427,14.12863686,206.3,206.23,14.12863686]
[1734563467743,12.4509772,206.36,206.2,0.35828211]
[1734563467744,0.5990772,206.36,206.29,14.12863686]
[1734563467946,0.5990772,206.36,206.24,4.80550074]
[1734563467947,0.5990772,206.36,206.31,14.12863686]
[1734563468120,0.5990772,206.36,206.33,14.12863686]
[1734563468322,0.5990772,206.36,206.35,14.12863686]
[1734563470125,0.5990772,206.36,206.35,38.03101086]
[1734563470730,0.5990772,206.36,206.35,68.03101086]
[1734563470927,0.5990772,206.36,206.35,44.12863686]
[1734563471855,0.5990772,206.36,206.35,30.0]
[1734563472025,0.5990772,206.36,206.29,14.12863686]
[1734563472226,0.5990772,206.36,206.3,30.0]
[1734563472427,14.72771406,206.36,206.3,30.0]
[1734563472658,14.12863686,206.35,206.3,30.0]
[1734563473129,14.12863686,206.35,206.27,14.12863686]
[1734563473533,14.72771406,206.36,206.28,14.12863686]
[1734563473732,0.5990772,206.36,206.3,14.12863686]
[1734563475169,14.72771406,206.36,206.28,34.12863686]
[1734563475630,0.5990772,206.36,206.3,14.12863686]
[1734563477160,14.72771406,206.36,206.28,14.12863686]
[1734563477366,14.72771406,206.36,206.29,30.0]
[1734563477367,14.12863686,206.34,206.29,30.0]
[1734563477841,14.12863686,206.34,206.28,14.12863686]
[1734563478147,0.90865233,206.35,206.28,14.12863686]
[1734563478355,15.63647842,206.36,206.28,14.12863686]
[1734563479356,14.12863686,206.32,206.24,14.12863686]
[1734563479531,14.12863686,206.32,206.13,12.1278]
[1734563479532,21.20113686,206.26,206.25,30.0]
[1734563479864,23.776884,206.25,206.12,14.12863686]
[1734563480069,14.12863686,206.2,206.12,14.12863686]
[1734563480727,14.12863686,206.18,206.1,14.12863686]
[1734563480927,14.12863686,206.16,206.08,14.12863686]
[1734563481137,14.12863686,206.14,206.06,14.12863686]
[1734563481361,14.12863686,206.12,206.04,14.12863686]
[1734563481525,14.12863686,206.08,206.0,14.12863686]
[1734563482070,22.60797907,206.08,206.0,22.60797907]
[1734563483978,22.60797907,206.1,206.02,22.60797907]
[1734563484265,22.60797907,206.12,206.04,22.60797907]
[1734563485159,0.90977692,206.11,206.04,22.60797907]
[1734563485663,22.60797907,206.1,206.02,22.60797907]
[1734563485871,0.90989815,206.09,206.02,22.60797907]
[1734563487655,22.60797907,206.08,206.0,22.60797907]
[1734563487873,0.91002879,206.07,206.0,22.60797907]
[1734563490852,0.91002879,206.07,205.87,7.2797]
[1734563490853,22.60797907,206.01,205.87,7.2797]
[1734563491063,22.60797907,205.97,205.89,52.60797907]
[1734563491262,22.60797907,205.96,205.89,52.60797907]
[1734563491459,0.91042946,205.95,205.89,30.0]
[1734563491645,22.60797907,205.95,205.88,22.60797907]
[1734563491847,22.60797907,206.0,205.92,22.60797907]
[1734563492064,22.60797907,206.01,205.93,22.60797907]
[1734563492268,22.60797907,206.01,205.89,0.36128332]
[1734563492269,22.60797907,206.02,205.94,22.60797907]
[1734563492647,22.60797907,206.01,205.93,22.60797907]
[1734563493767,0.91041436,206.05,205.97,0.12549]
[1734563493988,2.86022747,206.15,205.97,0.12549]
[1734563493989,3.75555493,206.22,206.04,23.776884]
[1734563494148,0.90957541,206.18,206.08,22.60797907]
[1734563494347,12.1228,206.23,206.1,22.60797907]
[1734563494348,22.60797907,206.17,206.1,22.60797907]
[1734563494776,22.60797907,206.15,206.08,22.60797907]
[1734563495074,22.60797907,206.13,206.06,22.60797907]
[1734563495384,22.60797907,206.11,206.02,22.60797907]
[1734563495554,22.60797907,206.09,206.02,22.60797907]
[1734563499279,22.60797907,206.09,206.0,22.60797907]
[1734563499483,7.2528,206.19,205.96,22.60797907]
[1734563499484,22.60797907,206.05,205.96,22.60797907]
[1734563499658,0.91011612,206.04,205.96,22.60797907]
[1734563500054,23.51809321,206.05,205.96,22.60797907]
[1734563501364,22.60797907,206.05,205.98,22.60797907]
[1734563502217,22.60797907,206.09,206.0,22.60797907]
[1734563502863,22.60797907,206.09,206.02,22.60797907]
[1734563503360,22.60797907,206.11,206.03,22.60797907]
[1734563503565,22.60797907,206.11,206.05,22.60797907]
[1734563504564,46.38486307,206.15,206.07,22.60797907]
[1734563504763,22.60797907,206.14,206.07,22.60797907]
[1734563505066,23.51764867,206.14,206.06,22.60797907]
[1734563505785,22.60797907,206.12,206.05,22.60797907]
[1734563505964,22.60797907,206.11,206.06,20.0]
[1734563506292,22.60797907,206.12,206.06,20.0]
[1734563506465,22.60797907,206.12,206.05,22.60797907]
[1734563508394,22.60797907,206.13,206.05,22.60797907]
[1734563508591,22.60797907,206.11,206.03,42.60797907]
[1734563509179,22.60797907,206.11,206.03,22.60797907]
[1734563509567,22.60797907,206.1,206.03,22.60797907]
[1734563510885,22.60797907,206.12,206.05,22.60797907]
[1734563511975,22.60797907,206.12,206.04,22.60797907]
[1734563514298,0.90979823,206.14,206.06,22.60797907]
[1734563514299,22.60797907,206.14,206.06,22.60797907]
[1734563514483,22.60797907,206.16,206.08,22.60797907]
[1734563514992,23.51752081,206.18,206.1,22.60797907]
[1734563516568,22.60797907,206.19,206.11,22.60797907]
[1734563516972,22.60797907,206.2,206.13,22.60797907]
[1734563518994,22.60797907,206.2,206.11,22.60797907]
[1734563519200,22.60797907,206.18,206.11,22.60797907]
[1734563520499,22.60797907,206.18,206.09,42.60797907]
[1734563520695,0.90952045,206.17,206.09,42.60797907]
[1734563520867,22.60797907,206.14,206.07,22.60797907]
[1734563522992,22.60797907,206.14,206.06,22.60797907]
[1734563523175,23.51764902,206.13,206.06,22.60797907]
[1734563523873,23.51764902,206.13,206.04,42.60797907]
[1734563524072,14.12463186,206.12,206.04,34.12463186]
[1734563524676,14.12463186,206.06,205.95,7.5073]
[1734563524893,14.12463186,206.06,205.98,14.12463186]
[1734563525199,14.12463186,206.07,206.0,14.12463186]
[1734563525497,14.12463186,206.07,205.99,14.12463186]
[1734563525692,14.12463186,206.07,206.0,14.12463186]
[1734563525883,14.12463186,206.07,205.99,14.12463186]
[1734563526084,22.61111138,206.07,205.99,22.61111138]
[1734563529406,0.90999993,206.06,205.99,22.61111138]
[1734563531699,22.61111138,206.08,206.0,22.61111138]
[1734563533293,22.61111138,206.06,205.98,22.61111138]
[1734563533490,0.91011586,206.05,205.98,22.61111138]
[1734563533681,0.91011586,206.05,205.93,4.5474]
[1734563533682,22.61111138,206.04,205.96,22.61111138]
[1734563533882,22.61111138,206.02,205.96,22.61111138]
[1734563534201,0.91022847,206.01,205.94,22.61111138]
[1734563534589,22.61111138,205.98,205.9,22.61111138]
[1734563534788,22.61111138,205.96,205.88,22.61111138]
[1734563535004,22.61111138,205.94,205.88,22.61111138]
[1734563535713,22.61111138,205.94,205.86,22.61111138]
[1734563535925,0.91058864,206.02,205.92,22.61111138]
[1734563536210,0.91022511,206.04,205.97,22.61111138]
[1734563536896,0.91018439,206.05,205.99,22.61111138]
[1734563537324,22.61111138,206.03,205.95,22.61111138]
[1734563537534,0.91027721,206.02,205.95,22.61111138]
[1734563538400,0.91027721,206.02,205.95,20.0]
[1734563538597,0.91027721,206.02,205.93,22.61111138]
[1734563539003,22.61111138,206.01,205.93,22.61111138]
[1734563539211,0.9103421,206.0,205.93,22.61111138]
[1734563539534,22.61111138,205.95,205.85,22.61111138]
[1734563539762,22.61111138,205.91,205.83,27.15851138]
[1734563540293,0.91068749,205.9,205.83,22.61111138]
[1734563540615,22.61111138,205.91,205.83,22.61111138]
[1734563540817,22.61111138,205.91,205.86,20.0]
[1734563541112,22.61111138,205.91,205.83,22.61111138]
[1734563541313,22.61111138,205.87,205.78,27.36201138]
[1734563541515,0.91093777,205.86,205.78,22.61111138]
[1734563541719,22.61111138,205.89,205.8,22.61111138]
[1734563542518,0.91079415,205.98,205.87,22.61111138]
[1734563542820,23.52147572,206.0,205.92,22.61111138]
[1734563543020,20.668906,205.95,205.92,22.61111138]
[1734563544227,20.668906,205.95,205.94,22.61111138]
[1734563545130,20.668906,205.95,205.92,22.61111138]
[1734563545301,20.668906,205.95,205.88,22.61111138]
[1734563545505,23.5216387,205.94,205.86,22.61111138]
[1734563545728,23.5216387,205.94,205.84,22.61111138]
[1734563547321,22.61111138,205.94,205.86,22.61111138]
[1734563547635,20.668906,205.95,205.88,22.61111138]
[1734563548248,20.668906,205.95,205.9,22.61111138]
[1734563548611,20.668906,205.95,205.92,22.61111138]
[1734563548926,6.9953,206.12,205.94,50.18660138]
[1734563549132,0.90990575,206.11,206.03,22.61111138]
[1734563549818,22.61111138,206.1,206.01,22.61111138]
[1734563550143,0.91001065,206.09,206.01,22.61111138]
[1734563550313,22.61111138,206.08,205.99,22.61111138]
[1734563550512,22.61111138,206.06,205.97,22.61111138]
[1734563550713,0.91014844,206.05,205.97,22.61111138]
[1734563551522,22.61111138,206.04,205.95,22.61111138]
[1734563551831,34.74111138,206.1,205.91,22.61111138]
[1734563551832,22.61111138,206.0,205.91,22.61111138]
[1734563552041,22.61111138,205.98,205.91,22.61111138]
[1734563552206,0.91045823,205.97,205.91,22.61111138]
[1734563552410,22.61111138,205.98,205.91,22.61111138]
[1734563552625,0.91041668,205.97,205.91,22.61111138]
[1734563553046,22.61111138,206.0,205.91,22.61111138]
[1734563554340,22.61111138,206.0,205.85,23.776884]
[1734563554542,22.61111138,205.98,205.88,20.0]
[1734563554833,0.91045234,205.97,205.9,22.61111138]
[1734563555034,22.61111138,206.0,205.92,22.61111138]
[1734563555241,22.61111138,206.04,205.96,22.61111138]
[1734563555441,0.9102101,206.03,205.96,22.61111138]
[1734563555937,23.52132536,206.02,205.94,22.61111138]
[1734563556525,23.52132536,206.02,205.87,20.3611256]
[1734563556526,22.61111138,206.0,205.92,22.61111138]
[1734563556738,22.61111138,205.94,205.74,24.3015]
[1734563556921,0.91060235,205.93,205.86,22.61111138]
[1734563557128,22.61111138,205.94,205.86,22.61111138]
[1734563557535,22.61111138,205.96,205.88,22.61111138]
[1734563557737,0.9105669,205.95,205.88,22.61111138]
[1734563559136,0.91059579,205.99,205.92,22.61111138]
[1734563559839,0.91059579,205.99,205.94,22.61111138]
[1734563560038,12.1329,206.06,205.97,22.61111138]
[1734563560217,22.61111138,206.07,205.95,20.0]
[1734563560419,22.61111138,206.07,205.98,22.61111138]
[1734563560420,0.91000602,206.06,205.98,22.61111138]
[1734563560729,23.52121282,206.06,205.97,22.61111138]
[1734563561248,0.91010144,206.06,205.99,22.61111138]
[1734563561817,0.91005584,206.07,205.99,22.61111138]
[1734563562041,23.52116649,206.06,205.99,22.61111138]
[1734563562257,22.61111138,206.06,205.99,22.61111138]
[1734563563543,22.61111138,206.06,205.97,22.61111138]
[1734563564546,23.776884,206.05,205.97,22.61111138]
[1734563565644,23.776884,206.03,205.95,22.61111138]
[1734563565847,0.91025591,206.02,205.95,22.61111138]
[1734563566544,23.776884,206.01,205.95,22.61111138]
[1734563566739,0.91029329,206.0,205.95,22.61111138]
[1734563566937,23.776884,206.02,205.95,22.61111138]
[1734563567138,0.91028451,206.01,205.95,22.61111138]
[1734563569455,23.776884,206.03,205.97,22.61111138]
[1734563570357,22.61111138,206.04,205.97,22.61111138]
[1734563571042,23.52120826,206.04,205.97,22.61111138]
[1734563573062,23.52120826,206.04,205.95,22.61111138]
[1734563573237,23.776884,206.01,205.95,22.61111138]
[1734563573434,0.91029242,206.0,205.93,22.61111138]
[1734563573641,23.5214038,206.0,205.93,22.61111138]
[1734563575860,23.776884,205.99,205.93,22.61111138]
[1734563576057,0.91039043,205.98,205.91,22.61111138]
[1734563577060,23.776884,205.98,205.91,22.61111138]
[1734563577938,12.1364,206.0,205.93,22.61111138]
[1734563578436,12.1364,206.0,205.91,22.61111138]
[1734563578437,24.68713529,205.99,205.91,22.61111138]
[1734563578652,22.61111138,205.98,205.91,22.61111138]
[1734563579767,0.91040839,205.97,205.91,22.61111138]
[1734563580062,23.52153332,205.98,205.91,22.61111138]
[1734563580557,22.61111138,206.02,205.93,22.61111138]
[1734563580747,22.61111138,206.02,205.95,22.61111138]
[1734563581059,0.9101851,206.01,205.95,22.61111138]
[1734563581258,22.61111138,206.02,205.95,22.61111138]
[1734563582550,0.91021915,206.01,205.95,22.61111138]
[1734563583050,0.91021915,206.01,205.93,22.61111138]
[1734563583051,46.38799538,206.0,205.93,22.61111138]
[1734563583262,46.38799538,205.98,205.91,22.61111138]
[1734563583760,22.61111138,205.96,205.87,22.61111138]
[1734563583970,23.776884,205.93,205.85,22.61111138]
[1734563584145,0.91064167,205.92,205.85,22.61111138]
[1734563584339,22.61111138,205.96,205.87,22.61111138]
[1734563584559,23.776884,205.95,205.87,22.61111138]
[1734563584758,24.68742479,205.95,205.87,22.61111138]
[1734563586174,22.61111138,205.98,205.89,22.61111138]
[1734563586354,22.61111138,205.98,205.91,22.61111138]
[1734563587645,24.68727294,205.97,205.91,22.61111138]
[1734563587844,23.776884,205.97,205.91,22.61111138]
[1734563588068,22.61111138,206.0,205.91,22.61111138]
[1734563588250,24.68726282,205.99,205.91,22.61111138]
[1734563588453,23.776884,205.99,205.91,22.61111138]
[1734563589177,22.61111138,206.02,205.95,22.61111138]
[1734563589670,23.52127798,206.06,205.99,22.61111138]
[1734563589873,34.74281138,206.08,205.99,22.61111138]
[1734563590185,22.61111138,206.04,205.91,0.36049241]
[1734563590344,22.61111138,206.01,205.91,22.61111138]
[1734563590540,0.91036944,206.0,205.91,22.61111138]
[1734563590780,22.61111138,206.01,205.93,22.61111138]
[1734563590943,22.61111138,206.03,205.95,22.05111138]
[1734563591149,0.91031001,206.08,205.97,22.61111138]
[1734563591150,22.61111138,206.04,205.97,22.61111138]
[1734563592074,34.61041138,206.1,205.93,22.61111138]
[1734563592075,0.91009334,206.03,205.93,22.61111138]
[1734563592366,22.61111138,205.97,205.89,22.61111138]
[1734563592959,0.91044744,205.96,205.89,22.61111138]
[1734563593592,23.776884,205.98,205.89,22.61111138]
[1734563593778,22.61111138,205.97,205.89,22.61111138]
[1734563594071,22.61111138,205.95,205.87,22.61111138]
[1734563594249,23.52160792,205.97,205.89,22.61111138]
[1734563594675,22.61111138,205.99,205.91,22.61111138]
[1734563594859,22.61111138,206.03,205.95,22.61111138]
[1734563595170,22.61111138,206.05,205.97,22.61111138]
[1734563595371,0.91005181,206.04,205.97,22.61111138]
[1734563595574,22.61111138,206.03,205.95,22.61111138]
[1734563595754,0.91021474,206.02,205.95,22.61111138]
[1734563596076,22.61111138,206.03,205.95,22.61111138]
[1734563596257,22.61111138,206.05,205.97,22.61111138]
[1734563599477,0.91004507,206.04,205.97,22.61111138]
[1734563599773,22.61111138,206.05,205.97,22.61111138]
[1734563599979,22.61111138,206.07,205.97,52.61111138]
[1734563600167,0.91002352,206.06,205.99,22.61111138]
[1734563601079,23.52114603,206.07,205.99,22.61111138]
[1734563601461,22.61111138,206.05,205.97,52.9715439]
[1734563601771,22.61111138,206.05,205.98,30.0]
[1734563602576,22.61111138,206.07,205.99,22.61111138]
[1734563602878,22.61111138,206.1,206.03,22.61111138]
[1734563603085,22.61111138,206.13,206.06,22.61111138]
[1734563603458,22.61111138,206.14,206.06,22.61111138]
[1734563603670,7.39205887,206.16,206.1,22.61111138]
[1734563603882,22.61111138,206.17,206.1,22.61111138]
[1734563605092,0.90952588,206.19,206.11,22.61111138]
[1734563605397,22.61111138,206.17,206.1,22.61111138]
[1734563607598,22.61111138,206.18,206.1,22.61111138]
[1734563608099,0.90953184,206.17,206.1,22.61111138]
[1734563608395,22.61111138,206.16,206.08,22.61111138]
[1734563608595,13.03543184,206.17,206.06,22.61111138]
[1734563608596,22.61111138,206.14,206.06,22.61111138]
[1734563609090,0.90966752,206.15,206.08,22.61111138]
[1734563609295,22.61111138,206.16,206.08,22.61111138]
[1734563610076,23.52069533,206.16,206.08,22.61111138]
[1734563610278,22.61111138,206.14,206.06,22.61111138]
[1734563610592,0.90968941,206.22,206.13,22.61111138]
[1734563610785,23.52080079,206.22,206.13,22.61111138]
[1734563610984,22.61111138,206.2,206.11,22.61111138]
[1734563611194,0.90946935,206.19,206.11,22.61111138]
[1734563611817,22.61111138,206.22,206.13,22.61111138]
[1734563612175,0.90927364,206.21,206.13,22.61111138]
[1734563612388,22.61111138,206.2,206.11,22.61111138]
[1734563612576,0.90950341,206.19,206.11,22.61111138]
[1734563613000,22.61111138,206.12,206.07,0.35936952]
[1734563613208,46.38799538,206.08,206.07,30.0]
[1734563613497,47.29809333,206.08,206.07,18.2897]
[1734563613676,54.90949333,206.08,205.91,30.17331189]
[1734563613880,22.61111138,205.98,205.91,7.56220051]
[1734563614306,22.61111138,205.98,205.89,22.61111138]
[1734563615000,22.61111138,206.04,205.95,22.61111138]